[Event "Late-Titled-Tuesday-Blitz-April-02-2024"]
[Site "Chess.com"]
[Date "2024.04.02"]
[Round "2"]
[White "BillCoe"]
[Black "MusicCityMaster"]
[Result "0-1"]
[WhiteElo "2118"]
[BlackElo "2432"]
[TimeControl "180+1"]
[EndTime "14:13:36 PDT"]
[Termination "MusicCityMaster won by resignation"]

1. e4 {[%clk 0:03:00.9]} 1... e6 {[%clk 0:02:59.7]} 2. d4 {[%clk 0:03:00.4]}
2... d5 {[%clk 0:03:00.6]} 3. Nd2 {[%clk 0:03:00.4]} 3... Nc6 {[%clk 0:02:59.7]}
4. c3 {[%clk 0:02:59.8]} 4... e5 {[%clk 0:02:59.7]} 5. exd5 {[%clk 0:02:59.5]}
5... Qxd5 {[%clk 0:02:59.2]} 6. dxe5 {[%clk 0:02:59.1]} 6... Bf5 {[%clk
0:02:57.4]} 7. Ngf3 {[%clk 0:02:56.2]} 7... O-O-O {[%clk 0:02:56.3]} 8. Bc4
{[%clk 0:02:53.7]} 8... Qd7 {[%clk 0:02:54.5]} 9. O-O {[%clk 0:02:52.9]} 9...
Bc5 {[%clk 0:02:45.9]} 10. Qe2 {[%clk 0:02:52.6]} 10... Kb8 {[%clk 0:02:42.2]}
11. Ne4 {[%clk 0:02:51.9]} 11... Bb6 {[%clk 0:02:39.2]} 12. Bg5 {[%clk
0:02:40.4]} 12... Re8 {[%clk 0:02:27.1]} 13. Ng3 {[%clk 0:02:31.5]} 13... Bg6
{[%clk 0:02:22.5]} 14. Rad1 {[%clk 0:02:27]} 14... Qg4 {[%clk 0:02:15]} 15. Be3
{[%clk 0:02:09]} 15... f6 {[%clk 0:02:05.2]} 16. Bxb6 {[%clk 0:02:08.1]} 16...
axb6 {[%clk 0:02:05.1]} 17. h3 {[%clk 0:02:06.3]} 17... Qf4 {[%clk 0:01:54]} 18.
Qd2 {[%clk 0:01:57.1]} 18... Qxc4 {[%clk 0:01:50.8]} 19. b3 {[%clk 0:01:52.3]}
19... Qe6 {[%clk 0:01:46.8]} 20. exf6 {[%clk 0:01:52]} 20... Nxf6 {[%clk
0:01:46.2]} 21. Rfe1 {[%clk 0:01:52.4]} 21... Qc8 {[%clk 0:01:41.1]} 22. Nd4
{[%clk 0:01:47.6]} 22... Nxd4 {[%clk 0:01:37.9]} 23. Qxd4 {[%clk 0:01:46.4]}
23... Rxe1+ {[%clk 0:01:37.7]} 24. Rxe1 {[%clk 0:01:46.4]} 24... Rd8 {[%clk
0:01:38.1]} 25. Qe5 {[%clk 0:01:43.2]} 25... Re8 {[%clk 0:01:36.8]} 0-1

[Event "Late-Titled-Tuesday-Blitz-April-02-2024"]
[Site "Chess.com"]
[Date "2024.04.02"]
[Round "2"]
[White "Switzerlamb"]
[Black "DrKerfuffle"]
[Result "0-1"]
[WhiteElo "2549"]
[BlackElo "2781"]
[TimeControl "180+1"]
[EndTime "14:14:01 PDT"]
[Termination "DrKerfuffle won by resignation"]

1. Nf3 {[%clk 0:03:00.9]} 1... c5 {[%clk 0:02:59.9]} 2. c4 {[%clk 0:03:00.3]}
2... Nc6 {[%clk 0:03:00.1]} 3. Nc3 {[%clk 0:03:00.2]} 3... g6 {[%clk 0:03:00.5]}
4. g3 {[%clk 0:02:59.1]} 4... Bg7 {[%clk 0:03:01]} 5. Bg2 {[%clk 0:03:00]} 5...
Nh6 {[%clk 0:03:01.5]} 6. O-O {[%clk 0:02:59.7]} 6... Nf5 {[%clk 0:03:02.1]} 7.
d3 {[%clk 0:02:56.2]} 7... O-O {[%clk 0:03:02.2]} 8. Rb1 {[%clk 0:02:55.6]} 8...
e6 {[%clk 0:03:01.9]} 9. Ne1 {[%clk 0:02:47.7]} 9... b6 {[%clk 0:02:51.6]} 10.
a3 {[%clk 0:02:45.5]} 10... Bb7 {[%clk 0:02:51.5]} 11. Bd2 {[%clk 0:02:45.3]}
11... d6 {[%clk 0:02:20]} 12. b4 {[%clk 0:02:44.3]} 12... Qd7 {[%clk 0:02:20.6]}
13. bxc5 {[%clk 0:02:33.8]} 13... dxc5 {[%clk 0:02:20.2]} 14. Nc2 {[%clk
0:02:23.4]} 14... Ncd4 {[%clk 0:02:18.6]} 15. Bxb7 {[%clk 0:02:19.4]} 15... Qxb7
{[%clk 0:02:19.5]} 16. a4 {[%clk 0:02:17.9]} 16... h5 {[%clk 0:02:14.9]} 17. h4
{[%clk 0:02:08.8]} 17... Qc6 {[%clk 0:01:59.2]} 18. a5 {[%clk 0:01:59.9]} 18...
bxa5 {[%clk 0:02:00.1]} 19. Ra1 {[%clk 0:01:52.8]} 19... Nb3 {[%clk 0:01:55.8]}
20. Ra3 {[%clk 0:01:51.4]} 20... Nxd2 {[%clk 0:01:52.2]} 21. Qxd2 {[%clk
0:01:51.9]} 21... Rfb8 {[%clk 0:01:51.2]} 22. Rfa1 {[%clk 0:01:43]} 22... Rb2
{[%clk 0:01:48]} 23. Qc1 {[%clk 0:01:41.8]} 23... Rab8 {[%clk 0:01:42.7]} 24.
R1a2 {[%clk 0:01:26.3]} 24... Bxc3 {[%clk 0:01:40.2]} 0-1

[Event "Late-Titled-Tuesday-Blitz-April-02-2024"]
[Site "Chess.com"]
[Date "2024.04.02"]
[Round "2"]
[White "WindWhistler11"]
[Black "Agustin_Meza"]
[Result "1-0"]
[WhiteElo "2439"]
[BlackElo "2135"]
[TimeControl "180+1"]
[EndTime "14:14:05 PDT"]
[Termination "WindWhistler11 won on time"]

1. Nf3 {[%clk 0:03:00]} 1... Nf6 {[%clk 0:03:00]} 2. g3 {[%clk 0:02:57.5]} 2...
d5 {[%clk 0:02:04.1]} 3. Bg2 {[%clk 0:02:58.4]} 3... e6 {[%clk 0:02:03.3]} 4. d3
{[%clk 0:02:55.4]} 4... Be7 {[%clk 0:01:58.8]} 5. Nbd2 {[%clk 0:02:56.3]} 5...
b5 {[%clk 0:01:57.2]} 6. e4 {[%clk 0:02:57.2]} 6... a5 {[%clk 0:01:55.8]} 7. e5
{[%clk 0:02:57.4]} 7... Nfd7 {[%clk 0:01:55.2]} 8. O-O {[%clk 0:02:58.3]} 8...
a4 {[%clk 0:01:54.4]} 9. Re1 {[%clk 0:02:58.3]} 9... a3 {[%clk 0:01:53]} 10. c4
{[%clk 0:02:54.9]} 10... axb2 {[%clk 0:01:44.6]} 11. Bxb2 {[%clk 0:02:55.8]}
11... bxc4 {[%clk 0:01:45.1]} 12. dxc4 {[%clk 0:02:55.8]} 12... c6 {[%clk
0:01:44.9]} 13. h4 {[%clk 0:02:40.6]} 13... O-O {[%clk 0:01:42.5]} 14. Nf1
{[%clk 0:02:29.1]} 1-0

[Event "Late-Titled-Tuesday-Blitz-April-02-2024"]
[Site "Chess.com"]
[Date "2024.04.02"]
[Round "2"]
[White "rhwr"]
[Black "rdarruda"]
[Result "1-0"]
[WhiteElo "2279"]
[BlackElo "2496"]
[TimeControl "180+1"]
[EndTime "14:14:15 PDT"]
[Termination "rhwr won by resignation"]

1. e4 {[%clk 0:03:00]} 1... c5 {[%clk 0:02:58]} 2. Nf3 {[%clk 0:03:00.4]} 2...
Nc6 {[%clk 0:02:57.6]} 3. d4 {[%clk 0:03:00.9]} 3... cxd4 {[%clk 0:02:58.4]} 4.
Nxd4 {[%clk 0:03:00.2]} 4... e5 {[%clk 0:02:59]} 5. Nb5 {[%clk 0:02:59.9]} 5...
a6 {[%clk 0:02:59.5]} 6. N5c3 {[%clk 0:03:00.1]} 6... Nf6 {[%clk 0:02:58.7]} 7.
Bg5 {[%clk 0:02:59.3]} 7... d6 {[%clk 0:02:56.5]} 8. Bd3 {[%clk 0:02:57.7]} 8...
Be7 {[%clk 0:02:55.9]} 9. O-O {[%clk 0:02:56.9]} 9... Be6 {[%clk 0:02:55.6]} 10.
Nd2 {[%clk 0:02:56.3]} 10... h6 {[%clk 0:02:55.1]} 11. Bxf6 {[%clk 0:02:53.5]}
11... Bxf6 {[%clk 0:02:54.2]} 12. Nc4 {[%clk 0:02:54.1]} 12... O-O {[%clk
0:02:49.9]} 13. Nd5 {[%clk 0:02:52.4]} 13... Bxd5 {[%clk 0:02:46.6]} 14. exd5
{[%clk 0:02:52.1]} 14... Ne7 {[%clk 0:02:47.3]} 15. Qf3 {[%clk 0:02:50.3]} 15...
Ng6 {[%clk 0:02:35.5]} 16. Bxg6 {[%clk 0:02:45.4]} 16... fxg6 {[%clk 0:02:35.1]}
17. Qe4 {[%clk 0:02:46]} 17... Kh7 {[%clk 0:02:34]} 18. g3 {[%clk 0:02:41.6]}
18... Rc8 {[%clk 0:02:29.3]} 19. h4 {[%clk 0:02:38.9]} 19... Qe8 {[%clk
0:02:24]} 20. Nxd6 {[%clk 0:02:37.4]} 20... Qd7 {[%clk 0:02:19.3]} 21. Nxc8
{[%clk 0:02:36.7]} 21... Rxc8 {[%clk 0:02:20.2]} 22. Rac1 {[%clk 0:02:32.9]}
22... h5 {[%clk 0:02:16]} 23. c4 {[%clk 0:02:32.2]} 23... b6 {[%clk 0:02:15.9]}
24. b4 {[%clk 0:02:31.6]} 24... Qd6 {[%clk 0:02:15.4]} 25. a3 {[%clk 0:02:27.4]}
25... a5 {[%clk 0:02:15.5]} 26. c5 {[%clk 0:02:16.1]} 26... bxc5 {[%clk
0:02:15]} 27. bxc5 {[%clk 0:02:16.6]} 27... Rxc5 {[%clk 0:02:13.3]} 28. Rxc5
{[%clk 0:02:15.3]} 28... Qxc5 {[%clk 0:02:14.2]} 29. a4 {[%clk 0:02:15.3]} 29...
Be7 {[%clk 0:02:12.5]} 30. Rd1 {[%clk 0:02:13.7]} 30... Bd6 {[%clk 0:02:12.3]}
31. Kg2 {[%clk 0:02:09]} 31... Qc3 {[%clk 0:02:10.5]} 32. Rd3 {[%clk 0:02:03.1]}
32... Qc7 {[%clk 0:02:10.4]} 33. Rd2 {[%clk 0:01:56.6]} 33... Qd7 {[%clk
0:02:10.3]} 34. Rc2 {[%clk 0:01:56.1]} 34... Qb7 {[%clk 0:02:06.5]} 35. Rc6
{[%clk 0:01:55]} 35... Qb8 {[%clk 0:02:07]} 36. Qc4 {[%clk 0:01:51.9]} 36... Bb4
{[%clk 0:02:06.4]} 37. Qd3 {[%clk 0:01:47.3]} 37... Qe8 {[%clk 0:02:03.8]} 38.
Re6 {[%clk 0:01:46.2]} 38... Qxa4 {[%clk 0:02:02.7]} 39. Qxg6+ {[%clk
0:01:44.7]} 39... Kg8 {[%clk 0:02:02.8]} 40. Re8+ {[%clk 0:01:44.8]} 40... Bf8
{[%clk 0:02:02.8]} 41. Qe6+ {[%clk 0:01:44.4]} 41... Kh7 {[%clk 0:02:02.6]} 42.
Qf5+ {[%clk 0:01:43.2]} 42... g6 {[%clk 0:02:00.8]} 43. Qf7+ {[%clk 0:01:41.8]}
43... Bg7 {[%clk 0:01:59.7]} 44. Re7 {[%clk 0:01:29.4]} 44... Qe4+ {[%clk
0:01:59.5]} 45. Kh2 {[%clk 0:01:27.9]} 1-0

[Event "Late-Titled-Tuesday-Blitz-April-02-2024"]
[Site "Chess.com"]
[Date "2024.04.02"]
[Round "2"]
[White "Navyblue1"]
[Black "chessisveryfun1264"]
[Result "1/2-1/2"]
[WhiteElo "2267"]
[BlackElo "2503"]
[TimeControl "180+1"]
[EndTime "14:14:24 PDT"]
[Termination "Game drawn by repetition"]

1. d4 {[%clk 0:02:57.5]} 1... e6 {[%clk 0:03:00.9]} 2. c4 {[%clk 0:02:57]} 2...
b6 {[%clk 0:02:58.2]} 3. e4 {[%clk 0:02:54.9]} 3... Bb7 {[%clk 0:02:54.4]} 4.
Bd3 {[%clk 0:02:54.8]} 4... f5 {[%clk 0:02:54.7]} 5. Qe2 {[%clk 0:02:31.4]} 5...
Bb4+ {[%clk 0:02:53.6]} 6. Bd2 {[%clk 0:02:30.3]} 6... Nc6 {[%clk 0:02:49]} 7.
Nf3 {[%clk 0:02:27.8]} 7... fxe4 {[%clk 0:02:45.8]} 8. Bxe4 {[%clk 0:02:25.7]}
8... Bxd2+ {[%clk 0:02:45.6]} 9. Nbxd2 {[%clk 0:02:24.7]} 9... Nf6 {[%clk
0:02:46.3]} 10. Bd3 {[%clk 0:02:20.8]} 10... O-O {[%clk 0:02:45.6]} 11. O-O
{[%clk 0:02:18]} 11... Nh5 {[%clk 0:02:42.4]} 12. Qe3 {[%clk 0:02:14.5]} 12...
Nf4 {[%clk 0:02:41.4]} 13. Be4 {[%clk 0:02:13.4]} 13... Qf6 {[%clk 0:02:36]} 14.
d5 {[%clk 0:02:07.5]} 14... Ne5 {[%clk 0:02:34.3]} 15. Nxe5 {[%clk 0:02:06]}
15... Qxe5 {[%clk 0:02:35.2]} 16. Rab1 {[%clk 0:01:52.5]} 16... exd5 {[%clk
0:02:34.1]} 17. Bxh7+ {[%clk 0:01:50.2]} 17... Kxh7 {[%clk 0:02:29.5]} 18. Qxe5
{[%clk 0:01:49.3]} 18... Rae8 {[%clk 0:02:30]} 19. Qg5 {[%clk 0:01:45.6]} 19...
dxc4 {[%clk 0:02:27]} 20. Rfe1 {[%clk 0:01:37.4]} 20... Bxg2 {[%clk 0:02:24.3]}
21. Qh4+ {[%clk 0:01:32.8]} 21... Kg8 {[%clk 0:02:18.9]} 22. Qg3 {[%clk
0:01:26.7]} 22... Re2 {[%clk 0:02:10.1]} 23. Nxc4 {[%clk 0:01:19.2]} 23... Bd5
{[%clk 0:01:48.9]} 24. b3 {[%clk 0:01:11.2]} 24... Be6 {[%clk 0:01:45.8]} 25.
Kh1 {[%clk 0:00:53.1]} 25... Bd5+ {[%clk 0:01:44.1]} 26. Kg1 {[%clk 0:00:52.7]}
26... Be6 {[%clk 0:01:44.1]} 27. Kh1 {[%clk 0:00:51]} 27... Bd5+ {[%clk
0:01:43.6]} 28. Kg1 {[%clk 0:00:51]} 1/2-1/2

[Event "Late-Titled-Tuesday-Blitz-April-02-2024"]
[Site "Chess.com"]
[Date "2024.04.02"]
[Round "2"]
[White "Chempiblinka"]
[Black "CarlosjPineror"]
[Result "0-1"]
[WhiteElo "2365"]
[BlackElo "2678"]
[TimeControl "180+1"]
[EndTime "14:14:31 PDT"]
[Termination "CarlosjPineror won by resignation"]

1. Nf3 {[%clk 0:02:46.9]} 1... Nf6 {[%clk 0:02:59]} 2. g3 {[%clk 0:02:47.2]}
2... g6 {[%clk 0:02:55.3]} 3. Bg2 {[%clk 0:02:47.2]} 3... Bg7 {[%clk 0:02:55.6]}
4. O-O {[%clk 0:02:47.6]} 4... O-O {[%clk 0:02:56]} 5. c4 {[%clk 0:02:48.3]}
5... d6 {[%clk 0:02:56.5]} 6. Nc3 {[%clk 0:02:47.6]} 6... c6 {[%clk 0:02:55.7]}
7. d3 {[%clk 0:02:47.9]} 7... Qa5 {[%clk 0:02:56.1]} 8. Rb1 {[%clk 0:02:46.3]}
8... Qh5 {[%clk 0:02:56.6]} 9. h4 {[%clk 0:02:36.1]} 9... h6 {[%clk 0:02:55.4]}
10. b4 {[%clk 0:02:27.6]} 10... e5 {[%clk 0:02:52.7]} 11. c5 {[%clk 0:02:11.1]}
11... d5 {[%clk 0:02:50.7]} 12. Bb2 {[%clk 0:02:08]} 12... Ng4 {[%clk 0:02:45]}
13. b5 {[%clk 0:02:05.6]} 13... g5 {[%clk 0:02:38.9]} 14. bxc6 {[%clk
0:01:59.6]} 14... bxc6 {[%clk 0:02:37.8]} 15. e3 {[%clk 0:01:54.6]} 15... Be6
{[%clk 0:02:31.8]} 16. Nh2 {[%clk 0:01:12.3]} 16... gxh4 {[%clk 0:02:22.6]} 17.
Nxg4 {[%clk 0:00:47.6]} 17... Bxg4 {[%clk 0:02:19.9]} 18. Qa4 {[%clk 0:00:44.1]}
18... h3 {[%clk 0:02:05.8]} 19. f3 {[%clk 0:00:22.8]} 19... hxg2 {[%clk
0:02:01.9]} 20. Kxg2 {[%clk 0:00:23.7]} 20... Bh3+ {[%clk 0:02:01.7]} 21. Kg1
{[%clk 0:00:18.5]} 21... Bxf1 {[%clk 0:02:02.6]} 22. Rxf1 {[%clk 0:00:18.6]}
22... Qg6 {[%clk 0:02:03.5]} 0-1

[Event "Late-Titled-Tuesday-Blitz-April-02-2024"]
[Site "Chess.com"]
[Date "2024.04.02"]
[Round "2"]
[White "shimastream"]
[Black "albi1999"]
[Result "1-0"]
[WhiteElo "3007"]
[BlackElo "2603"]
[TimeControl "180+1"]
[EndTime "14:14:38 PDT"]
[Termination "shimastream won on time"]

1. Nf3 {[%clk 0:03:00.9]} 1... Nf6 {[%clk 0:02:55.3]} 2. c4 {[%clk 0:02:59.2]}
2... e6 {[%clk 0:02:50.5]} 3. g3 {[%clk 0:02:58.8]} 3... d5 {[%clk 0:02:49.6]}
4. Bg2 {[%clk 0:02:59.3]} 4... Nbd7 {[%clk 0:02:46.7]} 5. b3 {[%clk 0:02:57.7]}
5... Bd6 {[%clk 0:02:43.3]} 6. Bb2 {[%clk 0:02:54.8]} 6... O-O {[%clk
0:02:43.1]} 7. O-O {[%clk 0:02:55.2]} 7... b6 {[%clk 0:02:38.2]} 8. cxd5 {[%clk
0:02:50.1]} 8... exd5 {[%clk 0:02:39.1]} 9. Nd4 {[%clk 0:02:50.7]} 9... Nb8
{[%clk 0:02:18.9]} 10. Nc3 {[%clk 0:02:48.6]} 10... c6 {[%clk 0:02:14.8]} 11.
Rc1 {[%clk 0:02:41]} 11... Re8 {[%clk 0:02:14.2]} 12. d3 {[%clk 0:02:35.2]}
12... Bb7 {[%clk 0:02:08.7]} 13. e4 {[%clk 0:02:33.4]} 13... c5 {[%clk
0:01:54.4]} 14. Nf5 {[%clk 0:02:32.2]} 14... Bf8 {[%clk 0:01:47.4]} 15. exd5
{[%clk 0:02:25.5]} 15... Nxd5 {[%clk 0:01:38.6]} 16. Qg4 {[%clk 0:02:24.1]}
16... g6 {[%clk 0:01:32.4]} 17. Ne4 {[%clk 0:02:21.2]} 17... h5 {[%clk
0:00:32.9]} 18. Qf3 {[%clk 0:02:06.6]} 18... gxf5 {[%clk 0:00:22.6]} 19. Qxf5
{[%clk 0:02:07.5]} 19... Bg7 {[%clk 0:00:15.9]} 20. Ng5 {[%clk 0:02:05.3]} 1-0

[Event "Late-Titled-Tuesday-Blitz-April-02-2024"]
[Site "Chess.com"]
[Date "2024.04.02"]
[Round "2"]
[White "keepitcoming"]
[Black "Quattroporte300"]
[Result "0-1"]
[WhiteElo "2240"]
[BlackElo "2497"]
[TimeControl "180+1"]
[EndTime "14:14:43 PDT"]
[Termination "Quattroporte300 won by resignation"]

1. d4 {[%clk 0:02:49.1]} 1... d5 {[%clk 0:02:59.7]} 2. c4 {[%clk 0:02:42.5]}
2... e6 {[%clk 0:02:58.6]} 3. Nc3 {[%clk 0:02:41.5]} 3... Bb4 {[%clk 0:02:58.8]}
4. cxd5 {[%clk 0:02:40.8]} 4... exd5 {[%clk 0:02:58.6]} 5. Bf4 {[%clk
0:02:41.3]} 5... c6 {[%clk 0:02:58.2]} 6. e3 {[%clk 0:02:39.7]} 6... Nf6 {[%clk
0:02:58.6]} 7. Bd3 {[%clk 0:02:39.6]} 7... Nbd7 {[%clk 0:02:58.8]} 8. Nf3 {[%clk
0:02:37.8]} 8... Nf8 {[%clk 0:02:59.1]} 9. h3 {[%clk 0:02:36.2]} 9... Ng6 {[%clk
0:02:58.9]} 10. Bh2 {[%clk 0:02:34.4]} 10... O-O {[%clk 0:02:59]} 11. a3 {[%clk
0:02:33.1]} 11... Bd6 {[%clk 0:02:47.6]} 12. Ne5 {[%clk 0:02:32.8]} 12... Re8
{[%clk 0:02:45.6]} 13. f4 {[%clk 0:02:32]} 13... c5 {[%clk 0:02:20]} 14. Qf3
{[%clk 0:02:19.7]} 14... Qb6 {[%clk 0:02:04.7]} 15. O-O-O {[%clk 0:02:16.3]}
15... cxd4 {[%clk 0:02:03.9]} 16. exd4 {[%clk 0:02:17.2]} 16... Bd7 {[%clk
0:01:53.1]} 17. g4 {[%clk 0:02:07.5]} 17... Rac8 {[%clk 0:01:53]} 18. g5 {[%clk
0:02:01.9]} 18... Bxa3 {[%clk 0:01:50]} 19. bxa3 {[%clk 0:01:44.9]} 19... Rxc3+
{[%clk 0:01:49.2]} 20. Kd2 {[%clk 0:01:42]} 20... Ne4+ {[%clk 0:01:38.9]} 21.
Bxe4 {[%clk 0:01:17.1]} 21... Rxf3 {[%clk 0:01:23.4]} 22. Bxf3 {[%clk
0:01:13.3]} 22... Qxd4+ {[%clk 0:01:16.9]} 23. Nd3 {[%clk 0:01:05.7]} 23... Qe3+
{[%clk 0:01:12.7]} 24. Kc3 {[%clk 0:01:02.8]} 0-1

[Event "Late-Titled-Tuesday-Blitz-April-02-2024"]
[Site "Chess.com"]
[Date "2024.04.02"]
[Round "2"]
[White "Hikaru"]
[Black "IamSchrodingersCat"]
[Result "1-0"]
[WhiteElo "3264"]
[BlackElo "2627"]
[TimeControl "180+1"]
[EndTime "14:14:50 PDT"]
[Termination "Hikaru won on time"]

1. h3 {[%clk 0:03:00.9]} 1... g6 {[%clk 0:02:58.2]} 2. g4 {[%clk 0:02:57.7]}
2... Bg7 {[%clk 0:02:58.2]} 3. Bg2 {[%clk 0:02:58.1]} 3... d6 {[%clk 0:02:53.5]}
4. d4 {[%clk 0:02:58.2]} 4... e5 {[%clk 0:02:47.2]} 5. e3 {[%clk 0:02:58.4]}
5... Nf6 {[%clk 0:02:43.7]} 6. c4 {[%clk 0:02:57.7]} 6... exd4 {[%clk 0:02:42]}
7. exd4 {[%clk 0:02:57.8]} 7... O-O {[%clk 0:02:42.4]} 8. Nc3 {[%clk 0:02:57.5]}
8... Re8+ {[%clk 0:02:28.6]} 9. Nge2 {[%clk 0:02:57.3]} 9... h5 {[%clk
0:02:28.7]} 10. g5 {[%clk 0:02:56.3]} 10... Nfd7 {[%clk 0:02:23]} 11. O-O {[%clk
0:02:56]} 11... Nc6 {[%clk 0:02:20.5]} 12. h4 {[%clk 0:02:55.4]} 12... Nf8
{[%clk 0:02:15.2]} 13. Be3 {[%clk 0:02:54.8]} 13... Bg4 {[%clk 0:02:01.4]} 14.
Qd2 {[%clk 0:02:54.9]} 14... Qd7 {[%clk 0:01:56.7]} 15. Nf4 {[%clk 0:02:50.8]}
15... Rab8 {[%clk 0:01:45.4]} 16. Ncd5 {[%clk 0:02:47.5]} 16... Ne7 {[%clk
0:01:35.9]} 17. Nxe7+ {[%clk 0:02:46.1]} 17... Qxe7 {[%clk 0:01:34.5]} 18. Rfe1
{[%clk 0:02:42.8]} 18... Qd7 {[%clk 0:01:29.3]} 19. d5 {[%clk 0:02:35.9]} 19...
b6 {[%clk 0:01:20]} 20. f3 {[%clk 0:02:34.2]} 20... Bf5 {[%clk 0:01:19]} 21. Ne2
{[%clk 0:02:34.8]} 21... Rxe3 {[%clk 0:00:51.4]} 22. Qxe3 {[%clk 0:02:34.2]}
22... Bxb2 {[%clk 0:00:51.4]} 23. Rad1 {[%clk 0:02:33.8]} 23... Re8 {[%clk
0:00:51.3]} 24. Qd2 {[%clk 0:02:31.3]} 24... Bg7 {[%clk 0:00:39.7]} 25. Nd4
{[%clk 0:02:29.6]} 25... Rxe1+ {[%clk 0:00:32.7]} 26. Rxe1 {[%clk 0:02:29.7]}
26... Qa4 {[%clk 0:00:20.4]} 27. Bf1 {[%clk 0:02:20.4]} 27... a6 {[%clk
0:00:10.1]} 28. Re7 {[%clk 0:02:12.7]} 28... Nd7 {[%clk 0:00:04.5]} 29. Re8+
{[%clk 0:02:11.9]} 29... Kh7 {[%clk 0:00:04.2]} 30. Nxf5 {[%clk 0:02:12.1]}
30... gxf5 {[%clk 0:00:04.7]} 31. Bd3 {[%clk 0:02:12]} 1-0

[Event "Late-Titled-Tuesday-Blitz-April-02-2024"]
[Site "Chess.com"]
[Date "2024.04.02"]
[Round "2"]
[White "Ar4uha"]
[Black "ckgchess"]
[Result "0-1"]
[WhiteElo "2593"]
[BlackElo "2948"]
[TimeControl "180+1"]
[EndTime "14:15:03 PDT"]
[Termination "ckgchess won by resignation"]

1. e4 {[%clk 0:03:00.9]} 1... c5 {[%clk 0:02:59.9]} 2. Nf3 {[%clk 0:02:56]} 2...
d6 {[%clk 0:03:00.4]} 3. Bb5+ {[%clk 0:02:55.7]} 3... Nd7 {[%clk 0:03:00.4]} 4.
d4 {[%clk 0:02:55.8]} 4... cxd4 {[%clk 0:03:00.6]} 5. Qxd4 {[%clk 0:02:56.7]}
5... a6 {[%clk 0:03:01.1]} 6. Bxd7+ {[%clk 0:02:56.8]} 6... Bxd7 {[%clk
0:03:02]} 7. Nc3 {[%clk 0:02:57.5]} 7... e5 {[%clk 0:03:02]} 8. Qd3 {[%clk
0:02:58.1]} 8... Rc8 {[%clk 0:02:58.2]} 9. O-O {[%clk 0:02:58]} 9... h6 {[%clk
0:02:58.1]} 10. Rd1 {[%clk 0:02:58]} 10... Nf6 {[%clk 0:02:58]} 11. Nd2 {[%clk
0:02:58.6]} 11... Be7 {[%clk 0:02:49.9]} 12. Nc4 {[%clk 0:02:56.9]} 12... Rc6
{[%clk 0:02:28.3]} 13. a4 {[%clk 0:02:50.9]} 13... O-O {[%clk 0:02:27.1]} 14.
Ne3 {[%clk 0:02:35.1]} 14... Be6 {[%clk 0:02:27.1]} 15. Bd2 {[%clk 0:02:35.5]}
15... Qc7 {[%clk 0:02:23.4]} 16. Be1 {[%clk 0:02:34.3]} 16... Qd7 {[%clk
0:01:40.2]} 17. f3 {[%clk 0:02:25.5]} 17... Rfc8 {[%clk 0:01:39.4]} 18. Rac1
{[%clk 0:02:15.5]} 18... Rc5 {[%clk 0:01:34.9]} 19. Bf2 {[%clk 0:02:13.2]} 19...
R5c7 {[%clk 0:01:33.4]} 20. Kh1 {[%clk 0:02:06.7]} 20... Bf8 {[%clk 0:01:32.4]}
21. Rd2 {[%clk 0:02:03.9]} 21... Be7 {[%clk 0:01:21]} 22. Bh4 {[%clk 0:01:59.3]}
22... Rc5 {[%clk 0:01:09.4]} 23. Bf2 {[%clk 0:01:52.5]} 23... R5c6 {[%clk
0:01:09.6]} 24. Ned5 {[%clk 0:01:50.6]} 24... Bxd5 {[%clk 0:01:08.2]} 25. exd5
{[%clk 0:01:41]} 25... Rc4 {[%clk 0:01:05.7]} 26. Be3 {[%clk 0:01:39.2]} 26...
b5 {[%clk 0:01:02.6]} 27. axb5 {[%clk 0:01:38.9]} 27... axb5 {[%clk 0:01:03.5]}
28. Ne2 {[%clk 0:01:32]} 28... e4 {[%clk 0:00:57.9]} 29. fxe4 {[%clk 0:01:29.5]}
29... Nxe4 {[%clk 0:00:58.4]} 30. Rdd1 {[%clk 0:01:30.1]} 30... Bg5 {[%clk
0:00:48.8]} 31. Bxg5 {[%clk 0:01:29.7]} 31... Nf2+ {[%clk 0:00:48.5]} 32. Kg1
{[%clk 0:01:29.5]} 32... Nxd3 {[%clk 0:00:49.4]} 33. cxd3 {[%clk 0:01:29.7]}
33... Rxc1 {[%clk 0:00:44]} 34. Bxc1 {[%clk 0:01:29.7]} 34... Qg4 {[%clk
0:00:43.6]} 0-1

[Event "Late-Titled-Tuesday-Blitz-April-02-2024"]
[Site "Chess.com"]
[Date "2024.04.02"]
[Round "2"]
[White "Danishcrown"]
[Black "rcmz"]
[Result "1-0"]
[WhiteElo "2473"]
[BlackElo "2208"]
[TimeControl "180+1"]
[EndTime "14:15:10 PDT"]
[Termination "Danishcrown won by resignation"]

1. d4 {[%clk 0:03:00.9]} 1... d6 {[%clk 0:02:59]} 2. Bf4 {[%clk 0:02:57.5]} 2...
Nd7 {[%clk 0:02:58.5]} 3. Nf3 {[%clk 0:02:57]} 3... h6 {[%clk 0:02:58.6]} 4. h4
{[%clk 0:02:56]} 4... g6 {[%clk 0:02:58.1]} 5. Nc3 {[%clk 0:02:55.3]} 5... Bg7
{[%clk 0:02:58.2]} 6. e3 {[%clk 0:02:55.5]} 6... Ngf6 {[%clk 0:02:57.5]} 7. Be2
{[%clk 0:02:46.9]} 7... Nf8 {[%clk 0:02:56.9]} 8. e4 {[%clk 0:02:41.5]} 8... c6
{[%clk 0:02:45]} 9. Qd2 {[%clk 0:02:40.3]} 9... Ne6 {[%clk 0:02:38.5]} 10. O-O-O
{[%clk 0:02:29.9]} 10... Nxf4 {[%clk 0:02:36.6]} 11. Qxf4 {[%clk 0:02:29.8]}
11... Qa5 {[%clk 0:02:34.6]} 12. e5 {[%clk 0:02:27]} 12... dxe5 {[%clk
0:02:24.6]} 13. dxe5 {[%clk 0:02:25.7]} 13... Ng4 {[%clk 0:02:22.6]} 14. Kb1
{[%clk 0:01:56]} 14... Nxe5 {[%clk 0:02:01.7]} 15. Nb5 {[%clk 0:01:29.7]} 15...
f6 {[%clk 0:01:16.9]} 16. Nxe5 {[%clk 0:00:57.5]} 16... fxe5 {[%clk 0:01:14.3]}
17. Qg3 {[%clk 0:00:52.5]} 17... cxb5 {[%clk 0:01:02]} 18. Qxg6+ {[%clk
0:00:52.5]} 18... Kf8 {[%clk 0:01:00.3]} 19. Bh5 {[%clk 0:00:51.5]} 1-0